Cogmind - Beta 14 *** ADVENTURER MODE // 2025.01.08 @ 14:44:51 Player: leaf dog Result: Self-destructed Performance ------------- Evolutions (2) 1000 Regions Visited (4) 800 Robots Destroyed (41) 205 Value Destroyed (1093) 1093 Prototype IDs (2) 40 Alien Tech Used (0) 0 Bonus (11) 11 TOTAL SCORE: 3149 Bonus ------- High Alert Combat Kills 11 Cogmind --------- Core Integrity 479/550 Matter 217/300 Energy 9/250 System Corruption 3% Temperature Cool (0) Movement Hovering (56) Location -8/Materials Parts ------- > --- POWER (1) -------- Ion Engine > --- PROPULSION (4) --- Carbon-fiber Leg Aerolev Unit Faulty Aerolev Unit Aerolev Unit > --- UTILITY (3) ------ Advanced Weight Redist. System > --- WEAPON (3) ------- Pulse Rifle Autogun > --- INVENTORY (5) ---- Aluminum Leg Aluminum Leg Improved Heat Sink Peak State ------------ > --- POWER ------------ Light Nuclear Core > --- PROPULSION ------- Carbon-fiber Leg Aerolev Unit Aerolev Unit Aerolev Unit > --- UTILITY ---------- Advanced Weight Redist. System > --- WEAPON ----------- Heavy EM Shotgun Pulse Rifle Autogun > --- INVENTORY -------- Ion Engine Aluminum Leg Aluminum Leg Improved Heat Sink [Rating: 30] Favorites ----------- Power Improved Ion Engine Engine Improved Ion Engine Power Core Light Nuclear Core Propulsion Aluminum Leg Leg Aluminum Leg Wheel Compact Wheel Hover Unit Aerolev Unit Utility Medium Armor Plating Device Advanced Weight Redist. System Storage Large Matter Pod Processor Improved Targeting Computer Protection Medium Armor Plating Weapon Autogun Energy Gun Medium Laser Ballistic Gun Autogun Launcher Rocket Launcher Special Melee Weapon Datajack Build | -11 -10 -9 -9 -8 ------- Run | Yrd Mat Mat Min Mat Slots Evolved 4 | . . 2 . 2 Power . | . . . . . Propulsion 2 | . . 2 . . Utility 1 | . . . . 1 Weapon 1 | . . . . 1 Parts Attached 40 | 9 4 5 5 17 Power 6 | 1 . 1 1 3 Engine 5 | 1 . 1 1 2 Core 1 | . . . . 1 Reactor . | . . . . . Propulsion 15 | 5 . 3 . 7 Treads . | . . . . . Leg 9 | 2 . 3 . 4 Wheel 3 | 3 . . . . Hover 3 | . . . . 3 Flight . | . . . . . Utility 7 | 1 2 1 1 2 Device 2 | . . . . 2 Storage 3 | 1 1 . 1 . Processor 1 | . . 1 . . Hackware . | . . . . . Protection 1 | . 1 . . . Artifact . | . . . . . Weapon 12 | 2 2 . 3 5 Energy Gun 4 | 1 . . . 3 Energy Cannon . | . . . . . Ballistic Gun 5 | 1 2 . 1 1 Ballistic Cannon . | . . . . . Launcher 2 | . . . 2 . Special Weapon . | . . . . . Impact Weapon . | . . . . . Slashing Weapon . | . . . . . Piercing Weapon . | . . . . . Special Melee Weapon 1 | . . . . 1 Unidentified Prototypes 2 | . . . . 2 Parts Lost 4 | . . . . 4 Power 1 | . . . . 1 Propulsion . | . . . . . Utility 1 | . . . . 1 Weapon 2 | . . . . 2 Highest Loss Streak 2 | . . . . 2 To Critical Strikes . | . . . . . Average Slot Usage (%) 93 | . 95 89 100 87 Engine 10 | . 14 11 11 7 Leg 32 | . 28 34 44 26 Hover 2 | . . . . 7 Device 2 | . . . . 9 Storage 9 | . 14 4 10 6 Processor 1 | . . 6 . . Protection 8 | . 9 11 11 4 Energy Gun 1 | . 5 . . 1 Ballistic Gun 19 | . 22 22 17 16 Launcher 3 | . . . 4 6 Peak Build Rating 30 | 6 10 14 14 30 Average Rating 12 | 2 8 12 12 20 On Entrance 8 | . 6 10 14 12 Naked Turns . | . . . . . Heaviest Build 27 | 11 21 23 24 27 Greatest Support 49 | 26 20 40 40 49 Greatest Overweight (x) 1 | . 1 . . . Average Overweight (x) . | . . . . . Largest Inventory Capacity 8 | 8 8 5 5 5 Average Capacity 5 | 5 6 5 5 5 Most Carried 5 | 2 4 5 5 5 Average Carried 3 | . 1 4 3 4 Final Capacity 8 | 8 5 5 5 5 Final Carried 5 | . 4 5 4 3 Class Distribution -------------------- 80% | Mutant 8% | Scavenger-Tank 5% | Scavenger-Gunner 4% | Tank Dominant Class ---------------- Mutant | -10/Materials Mutant | -9/Materials Mutant | -9/Mines Mutant | -8/Materials Resources | -11 -10 -9 -9 -8 ----------- Run | Yrd Mat Mat Min Mat Matter Collected 1208 | 234 193 312 159 310 Remotely . | . . . . . Salvage Created 1238 | . 193 312 176 557 Parts 96 | . 12 29 13 42 Haulers Intercepted 1 | . . . . 1 Recyclers Shooed 1 | . 1 . . . Parts Field Recycled . | . . . . . Retrieved Matter . | . . . . . Parts Self-Destructed . | . . . . . Prevented . | . . . . . Kills | -11 -10 -9 -9 -8 ------- Run | Yrd Mat Mat Min Mat Combat Hostiles Destroyed 33 | . 4 5 5 19 Guns 27 | . 4 5 5 13 AOE 6 | . . . . 6 Classes Destroyed 8 | . 4 1 . 3 Worker 1 | . . . . 1 Tunneler 1 | . . . . 1 Hauler 1 | . . . . 1 Recycler 1 | . 1 . . . Watcher 4 | . 1 3 . . Swarmer 13 | . 3 . . 10 Grunt 14 | . 1 1 5 7 Sentry 6 | . . 4 . 2 Best Kill Streak 11 | . 4 2 3 11 Combat Bots Only 10 | . 3 2 3 10 Max Kills in Single Turn 5 | . 2 1 2 5 Gunslinging 1 | . 1 . 1 . Exploded 4 | . . . . 4 Melee . | . . . . . Uniques/NPCs Destroyed . | . . . . . Combat | -11 -10 -9 -9 -8 -------- Run | Yrd Mat Mat Min Mat Hostile Shots Fired 185 | . 17 46 20 102 Missed 58 | . 6 18 7 27 Damage Taken 1223 | . 64 247 138 774 Core 120 | . 4 37 8 71 Absorbed by Shields . | . . . . . Ignored by Resistances 371 | . 23 77 41 230 Core Remaining (%) 95 | 100 98 . 88 . Volleys Fired 85 | . 13 17 15 40 Largest 3 | . 2 2 2 3 Hottest 136 | . 70 46 56 136 Shots Fired 165 | . 26 34 24 81 Gun 158 | . 26 34 23 75 Cannon . | . . . . . Launcher 7 | . . . 1 6 Special . | . . . . . Kinetic 149 | . 24 34 23 68 Thermal 6 | . 2 . . 4 Explosive 7 | . . . 1 6 Electromagnetic 3 | . . . . 3 Robot Hit Streak 14 | . 4 14 9 12 Robot Miss Streak 3 | . 3 1 1 3 Penetration Max . | . . . . . Secondary Targets 6 | . 1 . 1 4 Max Gunslinging Chain 1 | . 1 . 1 1 Shots Hit Robots 112 | . 11 24 20 57 Core Hits 67 | . 7 13 8 39 Critical Kills 2 | . . . . 2 Critical Parts Destroyed . | . . . . . Critical Strikes 2 | . . . . 2 Destroy 2 | . . . . 2 Melee Attacks 1 | . . . . 1 Impact . | . . . . . Slashing . | . . . . . Piercing . | . . . . . Sneak Attacks . | . . . . . Combat Hostiles . | . . . . . Follow-up Attacks . | . . . . . Damage Inflicted 2291 | . 200 379 367 1345 Guns 1738 | . 200 379 280 879 Cannons . | . . . . . Explosions 519 | . . . 53 466 Melee . | . . . . . Ramming 34 | . . . 34 . Kinetic 1594 | . 175 379 280 760 Thermal 77 | . 25 . . 52 Explosive 519 | . . . 53 466 Electromagnetic 67 | . . . . 67 Impact . | . . . . . Slashing . | . . . . . Piercing . | . . . . . Highest Corruption 3 | . . . . 3 Average Corruption 3 | . . . . 3 Corruption Purged . | . . . . . Corruption Blocked . | . . . . . Overload Shots . | . . . . . Overflow Damage 37 | . . . . 37 Projectiles . | . . . . . Explosions 37 | . . . . 37 Melee . | . . . . . Knockbacks . | . . . . . Impact . | . . . . . Kinetic . | . . . . . Secondary . | . . . . . Self-Inflicted Damage 4 | . . . . 4 Shots 1 | . . . . 1 Rammed . | . . . . . Targets Rammed 6 | . . . 6 . Kicked 6 | . . . 6 . Crushed . | . . . . . Highest Temperature 306 | . 40 17 40 306 Average Temperature 33 | . 13 7 14 60 Received Heat Transfer 537 | . 6 36 108 387 Siege Activations . | . . . . . Robots Corrupted . | . . . . . Combat Hostiles . | . . . . . Parts Fried . | . . . . . Impact Corruptions . | . . . . . Robots Melted . | . . . . . Combat Hostiles . | . . . . . Parts Melted . | . . . . . Heat Transferred 185 | . 74 . . 111 Parts Sabotaged . | . . . . . Parts Stolen . | . . . . . Parts Stripped . | . . . . . Power Chain Reactions . | . . . . . Alert | -11 -10 -9 -9 -8 ------- Run | Yrd Mat Mat Min Mat Peak Influence 423 | . 134 232 259 423 Initial 76 | . . 1 76 19 Average 116 | . 45 107 140 203 Maximum Alert Level 2 | . . 1 1 2 Low Security (%) 77 | 100 100 74 85 45 Level 1 21 | . . 25 14 52 Level 2 . | . . . . 2 Level 3 . | . . . . . Level 4 . | . . . . . Level 5 . | . . . . . High Security . | . . . . . Max Security . | . . . . . Squads Dispatched 1 | . . 1 . . Investigation . | . . . . . Extermination . | . . . . . Reinforcement 1 | . . 1 . . Assault . | . . . . . Garrison . | . . . . . Intercept . | . . . . . Searches Triggered . | . . . . . Construction Impeded . | . . . . . Haulers Reinforced . | . . . . . Active Scanning Responses . | . . . . . Cargo Convoy Interrupts . | . . . . . Stealth | -11 -10 -9 -9 -8 --------- Run | Yrd Mat Mat Min Mat Distress Signals 7 | . 1 2 . 4 Communications Jammed . | . . . . . Distress Signals . | . . . . . Times Spotted 58 | . 7 15 7 29 Peak Tracking Total 13 | . 3 9 3 13 Tactical Retreats 3 | . 1 . 1 1 Traps | -11 -10 -9 -9 -8 ------- Run | Yrd Mat Mat Min Mat Traps Triggered . | . . . . . Indirectly . | . . . . . Trap Hack Attempts . | . . . . . Triggered . | . . . . . Disarmed 3 | . 3 . . . Reprogrammed . | . . . . . Reused . | . . . . . Traps Extracted . | . . . . . Installed . | . . . . . Triggered 1 | . . . 1 . Machines | -11 -10 -9 -9 -8 ---------- Run | Yrd Mat Mat Min Mat Machines Disabled 2 | . . 1 . 1 Max in Single Turn 1 | . . 1 . 1 Machines Repaired . | . . . . . Machines Dismantled . | . . . . . Machines Sabotaged . | . . . . . Overloaded Fab Kills . | . . . . . Hacking | -11 -10 -9 -9 -8 --------- Run | Yrd Mat Mat Min Mat Machines Accessed 2 | . 2 . . . Terminals 2 | . 2 . . . Fabricators . | . . . . . Repair Stations . | . . . . . Recycling Units . | . . . . . Scanalyzers . | . . . . . Garrison Access . | . . . . . Total Hacks 6 | . 6 . . . Successful 3 | . 3 . . . Failed 3 | . 3 . . . Catastrophic 1 | . 1 . . . Database Lockouts . | . . . . . Manual . | . . . . . Terminals 6 | . 6 . . . Fabricators . | . . . . . Repair Stations . | . . . . . Recycling Units . | . . . . . Scanalyzers . | . . . . . Garrison Access . | . . . . . Terminal Hacks 3 | . 3 . . . Record 1 | . 1 . . . Level Access Points 1 | . 1 . . . Disarm Traps 1 | . 1 . . . Fabricator Hacks . | . . . . . Repair Station Hacks . | . . . . . Recycling Unit Hacks . | . . . . . Scanalyzer . | . . . . . Garrison Access Hacks . | . . . . . Unauthorized Hacks . | . . . . . Terminals . | . . . . . Fabricators . | . . . . . Repair Stations . | . . . . . Recycling Units . | . . . . . Scanalyzers . | . . . . . Garrison Access . | . . . . . Data Cores Recovered . | . . . . . Used . | . . . . . Hacking Detections 1 | . 1 . . . Full Trace Events . | . . . . . Feedback Events . | . . . . . Feedback Blocked . | . . . . . Robot Schematics Acquired . | . . . . . Robots Built . | . . . . . Authchips . | . . . . . Time . | . . . . . Total Robot Build Rating . | . . . . . Part Schematics Acquired . | . . . . . Parts Built . | . . . . . Authchips . | . . . . . Time . | . . . . . Total Part Build Rating . | . . . . . Parts Repaired . | . . . . . Time . | . . . . . Parts Recycled . | . . . . . Recycled Matter . | . . . . . Retrieved Matter . | . . . . . Retrieved Components . | . . . . . Parts Scanalyzed . | . . . . . Part Schematics Acquired . | . . . . . Parts Damaged . | . . . . . Bothacking | -11 -10 -9 -9 -8 ------------ Run | Yrd Mat Mat Min Mat Used RIF Installer . | . . . . . Robots Hacked 1 | . . . . 1 Non-combat . | . . . . . Combat 1 | . . . . 1 Robot Hacks Applied 1 | . . . . 1 parse_system 1 | . . . . 1 Relay Couplers Released . | . . . . . Fabnet Peak Effective % . | . . . . . Robots Rewired . | . . . . . Allies Hacked . | . . . . . Hacks Repelled . | . . . . . Allies | -11 -10 -9 -9 -8 -------- Run | Yrd Mat Mat Min Mat Total Allies . | . . . . . Largest Group . | . . . . . Highest-Rated Group . | . . . . . Highest-Rated Ally . | . . . . . Total Orders . | . . . . . Ally Attacks . | . . . . . Total Damage . | . . . . . Kills . | . . . . . Allies Corrupted . | . . . . . Allies Melted . | . . . . . Intel | -11 -10 -9 -9 -8 ------- Run | Yrd Mat Mat Min Mat Robot Analysis Total . | . . . . . Derelict Logs Recovered 2 | . . . 2 . Drone Launches . | . . . . . Drone Recoveries . | . . . . . Exploration | -11 -10 -9 -9 -8 ------------- Run | Yrd Mat Mat Min Mat Turns Passed 2179 | 164 599 335 469 612 Spaces Moved 1591 | 176 411 234 345 425 Core 85 | 85 . . . . Treads . | . . . . . Legs 1340 | 73 411 234 345 277 Wheels 18 | 18 . . . . Hover 148 | . . . . 148 Flight . | . . . . . Fastest Speed 50 | 50 120 120 120 56 Average Speed 112 | 83 131 120 120 97 Slowest Speed 190 | 120 190 120 120 120 Overloaded Moves . | . . . . . Propulsion Burnouts . | . . . . . Robots Hopped . | . . . . . Cave-ins Triggered . | . . . . . Exploration Rate (%) 32 | 7 35 18 64 38 Regions Visited 4 Branch Regions 1 Pre-discovered Areas . | . . . . . Known Exits Taken 1 | . 1 . . . Unknown Exits Taken 3 | 1 . 1 1 . Scrap Searched . | . . . . . Spaces Dug 7 | . . . . 7 Terrain Destroyed 45 | . . . 9 36 Melee . | . . . . . Projectile . | . . . . . AOE 45 | . . . 9 36 Terrain Rammed . | . . . . . Walls Destroyed . | . . . . . Machines Disabled . | . . . . . Actions | -11 -10 -9 -9 -8 --------- Run | Yrd Mat Mat Min Mat Total 1843 | 192 449 260 379 563 Wait 68 | . 12 . 1 55 Move 1587 | 175 410 233 344 425 Hop . | . . . . . Pick Up 23 | 2 4 3 4 10 Fast Attach 16 | 7 4 2 . 3 Attach 12 | 2 . 1 . 9 Detach 10 | 3 3 . . 4 Swap 12 | . . 2 5 5 Drop 23 | 3 3 2 4 11 Fire 85 | . 13 17 15 40 Melee 1 | . . . . 1 Ram . | . . . . . Kick 6 | . . . 6 . Crush . | . . . . . Escape Stasis . | . . . . . Rewire . | . . . . . Trap . | . . . . . Miscellaneous . | . . . . . Route ------- -11/Scrapyard -10/Materials (discovered 3 exits: *Mat x3) -9/Materials -9/Mines -8/Materials History --------- Turn | Location | Event 5 | -11/Scrapyard | Discovered new exit (range 15) 165 | -11/Scrapyard | Entered Materials 318 | -10/Materials | Build established: Mutant 495 | -10/Materials | Identified exit to Materials 764 | -10/Materials | Entered another Materials area 764 | -9/Materials | Evolved 2 slots: Propulsion x2 1076 | -9/Materials | Discovered new exit (range 16) 1099 | -9/Materials | Entered Mines 1106 | -9/Mines | Received a Rocket Launcher from a helpful Derelict 1397 | -9/Mines | Learned Materials terminal intel 1400 | -9/Mines | Learned 2 Materials zone layouts 1522 | -9/Mines | Discovered new exit (range 11) 1568 | -9/Mines | Entered Materials 1568 | -8/Materials | Evolved 2 slots: Utility x1, Weapon x1 1570 | -8/Materials | Loaded intel: 12 terminal locations 1880 | -8/Materials | Destroyed 10 combat bots 2180 | -8/Materials | Self-destructed Last Messages --------------- Acquired Datajack. Jacked G-47 Trooper... >>parse_system Reading system data... Slug penetrates Wall. Critical hit (Burn: +37). Slug penetrates Wall. Datajack destroyed. G-47 Trooper destroyed. Slug penetrates Wall. Hvy. EM Shotgun destroyed. System corrupted by crushing effect (+3). R-06 Scavenger collects Lgt. Nuclear Core. Slug penetrates Wall. Wall collapses. Slug penetrates B-36 Bruiser. B-36 Bruiser destroyed. R-06 Scavenger collects Lgt. Armor Plating. K-01 Serf collects debris. Slug penetrates Neutrino Reactor. Map ----- +----------------------------------------------------+ | ######### # ## """ | | # # # ## | | # """"" # # ## | | ##### """"" # # ## | | # """"" # # ####### | | # # # #?????? | | # """"" + %%+ #?????? | | # """"" # # #?????? | | # """"" ###### # #?????? | | # ###### # #?????? | | # ! #????# # #?????? | | # #????# ###+################ | | ############## ^ # [[ + | | # [[ ## | | # #? | | """ ### ! #? | | ???""" """ "Y" #?# #? | | ????""" """"" """ #######+######### | | ???"""" """"" """ | | ???"""" """"" % """ ###### | | """ """ ??????? | | ??????? | | %m ?????? | | % ##/########??####/##?????? | | # k= #?????? ??????? | | h;@/ #"????? ??????? | | ######## ######## t # """ #T????? "??????? | | ???????# ???????# # """ #"????? "??????? | | ????????????????# # """ """#?????? "??????? | | ????????????????# # R"#?????? ??????? | | ????????????????# # ! """#??????#???????? | | ????????????????# # #??????????????? | | ???????????????? ###########??????????????? | | ??????????????? #????????????????????????? | | ?????????????? != #????????????????????????? | | ?????????????? != #????????????????????????? | | ?????????????? ! #????????????????????????? | | ??????????????? #????????????????????????? | | ??????????????? #????????????????????????? | | ???????????????// ###????????????????????????? | | ???????????????// #??????????????????????????? | | ???????????????/ #??????????????????????????? | | ??????????????? ???????????????????????????? | | ??????????????? ?????????????????????????????? | | ???????T?????????????????????????????????????????? | | ?????????????????????????????????????T???????????? | | ?????????????????????????????????????????????????? | | ?????????????????????????????????????????????????? | | ?????????????????????????????????????????????????? | | ?????????????????????????????????????????????????? | +----------------------------------------------------+ Best States ------------- Heat Dissipation 31 Energy Generation 14 Energy Capacity 265 Matter Stores 450 Matter Capacity 450 Sight Range 16 Terrain Scan Density 10 Additional Mass Support 9 Armor Coverage 225 Resistance: KI 20 Resistance: TH 20 Resistance: EX 20 Resistance: EM 20 Resistance: I 20 Resistance: S 20 Resistance: P 20 Evasion (%) 55 Targeting Accuracy 6 Offensive Hacking 10 Item Schematics ----------------- None Robot Schematics ------------------ None Fabricated ------------ Nothing Alien Tech Used ----------------- None Achievements -------------- None Challenges ------------ None Game ------ Seed ThrusterSubdwellerSpecial Manual? 0 Play Time 00:39:35 Cumulative 10.5 hours Start 2025.01.08 @ 13:46:31 End 2025.01.08 @ 14:44:51 Sessions 1 Manual Loads 0 Difficulty Adventurer Special Mode None Game No. 16 Rogue 0 Adventurer 16 Explorer 0 Win Type - Total 0 Types 0/0/0/0/0/0/0/0/0 Lore% 9 Gallery% 16 Achievement% 15 Wizard Run 0 Options --------- Layout 0 ASCII 0 Keyboard 1 Movement Arrows Keybinds 0 Fullscreen 2 Font 18/X11Bold Map View 76x50 Zoom Use 0% Tactical HUD 0 Map Filters NONE Filters NONE Steam 1 RUN: a7d053f2-96b3-4a0f-bc76-7803fb32dc0b